[Event "Titled Tuesday Blitz January 17 Early 2023"]
[White "Marn, Jan"]
[Black "Karthik Rajaa"]
[WhiteFideId "14619245"]
[BlackFideId "25035215"]
[WhiteElo "2345"]
[BlackElo "2276"]
[Result "0-1"]
[Round "01"]
[TimeControl "180+2"]
[Date "2023.01.17"]
[WhiteClock "0:00:01"]
[BlackClock "0:00:11"]

1. d4 {[%clk 0:03:00]}  Nf6 {[%clk 0:02:59]} 2. Nf3 {[%clk 0:03:00]}  g6 {[%clk 0:02:59]} 3. c4 {[%clk 0:02:57]}  Bg7 {[%clk 0:02:59]} 4. Nc3 {[%clk 0:02:56]}  O-O {[%clk 0:03:00]} 5. g3 {[%clk 0:02:55]}  d6 {[%clk 0:02:59]} 6. Bg2 {[%clk 0:02:55]}  c5 {[%clk 0:03:00]} 7. dxc5 {[%clk 0:02:46]}  dxc5 {[%clk 0:03:01]} 8. O-O {[%clk 0:02:46]}  Nc6 {[%clk 0:03:01]} 9. Be3 {[%clk 0:02:40]}  Be6 {[%clk 0:03:00]} 10. Qa4 {[%clk 0:02:29]}  Nd4 {[%clk 0:02:59]} 11. Rfd1 {[%clk 0:02:26]}  Bd7 {[%clk 0:03:00]} 12. Qa3 {[%clk 0:02:19]}  Nc2 {[%clk 0:02:59]} 13. Qxc5 {[%clk 0:02:20]}  Nxa1 {[%clk 0:02:58]} 14. Rxa1 {[%clk 0:02:19]}  Bc6 {[%clk 0:02:40]} 15. Rd1 {[%clk 0:02:15]}  Qc8 {[%clk 0:02:35]} 16. Qxe7 {[%clk 0:02:13]}  Re8 {[%clk 0:02:29]} 17. Qb4 {[%clk 0:01:56]}  Rd8 {[%clk 0:02:02]} 18. Rxd8+ {[%clk 0:01:18]}  Qxd8 {[%clk 0:02:00]} 19. Ne5 {[%clk 0:01:17]}  Bxg2 {[%clk 0:01:58]} 20. Kxg2 {[%clk 0:01:18]}  b6 {[%clk 0:01:44]} 21. Nc6 {[%clk 0:00:56]}  Qd7 {[%clk 0:01:41]} 22. Ne7+ {[%clk 0:00:56]}  Kh8 {[%clk 0:01:40]} 23. Ned5 {[%clk 0:00:55]}  Nxd5 {[%clk 0:01:36]} 24. Nxd5 {[%clk 0:00:55]}  Rc8 {[%clk 0:01:26]} 25. b3 {[%clk 0:00:51]}  Qb7 {[%clk 0:01:23]} 26. a4 {[%clk 0:00:47]}  Re8 {[%clk 0:01:18]} 27. Qd2 {[%clk 0:00:47]}  Qd7 {[%clk 0:01:04]} 28. Bd4 {[%clk 0:00:44]}  Qc6 {[%clk 0:00:34]} 29. Qc3 {[%clk 0:00:23]}  Bxd4 {[%clk 0:00:31]} 30. Qxd4+ {[%clk 0:00:23]}  f6 {[%clk 0:00:32]} 31. e4 {[%clk 0:00:23]}  Kg7 {[%clk 0:00:31]} 32. f4 {[%clk 0:00:20]}  Rf8 {[%clk 0:00:29]} 33. e5 {[%clk 0:00:14]}  fxe5 {[%clk 0:00:29]} 34. Qxe5+ {[%clk 0:00:14]}  Kg8 {[%clk 0:00:20]} 35. Kf1 {[%clk 0:00:11]}  Qc5 {[%clk 0:00:18]} 36. h4 {[%clk 0:00:04]}  Rd8 {[%clk 0:00:16]} 37. h5 {[%clk 0:00:03]}  Qd6 {[%clk 0:00:14]} 38. hxg6 {[%clk 0:00:02]}  hxg6 {[%clk 0:00:13]} 39. Qe4 {[%clk 0:00:02]}  Kg7 {[%clk 0:00:12]} 40. Qd4+ {[%clk 0:00:02]}  Kf7 {[%clk 0:00:13]} 41. Qe4 {[%clk 0:00:02]}  Re8 {[%clk 0:00:13]} 42. Qf3 {[%clk 0:00:01]}  Qe6 {[%clk 0:00:13]} 43. Kg2 {[%clk 0:00:01]}  Qe2+ {[%clk 0:00:13]} 44. Qxe2 {[%clk 0:00:01]}  Rxe2+ {[%clk 0:00:14]} 45. Kf3 {[%clk 0:00:02]}  Rb2 {[%clk 0:00:14]} 46. b4 {[%clk 0:00:03]}  Ra2 {[%clk 0:00:14]} 47. a5 {[%clk 0:00:02]}  bxa5 {[%clk 0:00:15]} 48. bxa5 {[%clk 0:00:02]}  Rxa5 {[%clk 0:00:16]} 49. Ke4 {[%clk 0:00:03]}  Ra3 {[%clk 0:00:16]} 50. g4 {[%clk 0:00:03]}  Rb3 {[%clk 0:00:16]} 51. f5 {[%clk 0:00:03]}  gxf5+ {[%clk 0:00:16]} 52. gxf5 {[%clk 0:00:03]}  a5 {[%clk 0:00:17]} 53. Kd4 {[%clk 0:00:03]}  a4 {[%clk 0:00:17]} 54. Nc3 {[%clk 0:00:01]}  a3 {[%clk 0:00:18]} 55. c5 {[%clk 0:00:02]}  Rb4+ {[%clk 0:00:18]} 56. Kd3 {[%clk 0:00:02]}  Ra4 {[%clk 0:00:16]} 57. c6 {[%clk 0:00:01]}  a2 {[%clk 0:00:15]} 58. c7 {[%clk 0:00:01]}  a1=Q {[%clk 0:00:15]} 59. c8=Q {[%clk 0:00:01]}  Qf1+ {[%clk 0:00:14]} 60. Kc2 {[%clk 0:00:02]}  Qf2+ {[%clk 0:00:12]} 61. Kb3 {[%clk 0:00:02]}  Ra7 {[%clk 0:00:12]} 62. Qe6+ {[%clk 0:00:02]}  Kf8 {[%clk 0:00:12]} 63. Qd6+ {[%clk 0:00:01]}  Kg7 {[%clk 0:00:11]} 64. Qg6+ {[%clk 0:00:01]}  Kf8 {[%clk 0:00:11]} 0-1


[Site "https://www.chess.com"]

[Event "Titled Tuesday Blitz January 17 Early 2023"]
[White "Cherniaiev, Tykhon"]
[Black "Donskov, Anatoly"]
[WhiteFideId "14182360"]
[BlackFideId "24143413"]
[WhiteElo "2330"]
[BlackElo "2279"]
[Result "1-0"]
[Round "01"]
[TimeControl "180+2"]
[Date "2023.01.17"]
[WhiteClock "0:00:03"]
[BlackClock "0:00:02"]

1. Nf3 {[%clk 0:02:59]}  d5 {[%clk 0:02:59]} 2. d4 {[%clk 0:02:54]}  Nf6 {[%clk 0:02:59]} 3. c4 {[%clk 0:02:53]}  dxc4 {[%clk 0:02:55]} 4. e3 {[%clk 0:02:52]}  e6 {[%clk 0:02:50]} 5. Bxc4 {[%clk 0:02:52]}  c5 {[%clk 0:02:50]} 6. O-O {[%clk 0:02:52]}  a6 {[%clk 0:02:50]} 7. a4 {[%clk 0:02:52]}  cxd4 {[%clk 0:02:42]} 8. exd4 {[%clk 0:02:51]}  Nc6 {[%clk 0:02:42]} 9. Nc3 {[%clk 0:02:51]}  Be7 {[%clk 0:02:39]} 10. d5 {[%clk 0:02:47]}  exd5 {[%clk 0:02:37]} 11. Nxd5 {[%clk 0:02:48]}  Nxd5 {[%clk 0:02:34]} 12. Bxd5 {[%clk 0:02:49]}  O-O {[%clk 0:02:35]} 13. Bf4 {[%clk 0:02:47]}  Bf5 {[%clk 0:02:07]} 14. Ne5 {[%clk 0:02:42]}  Nxe5 {[%clk 0:01:46]} 15. Bxe5 {[%clk 0:02:43]}  Qa5 {[%clk 0:01:47]} 16. Qf3 {[%clk 0:01:48]}  Rad8 {[%clk 0:01:21]} 17. Rfd1 {[%clk 0:01:31]}  Bg6 {[%clk 0:01:04]} 18. Bc3 {[%clk 0:01:25]}  Bb4 {[%clk 0:01:01]} 19. Bxb7 {[%clk 0:00:31]}  Rxd1+ {[%clk 0:00:50]} 20. Qxd1 {[%clk 0:00:29]}  Bxc3 {[%clk 0:00:37]} 21. bxc3 {[%clk 0:00:29]}  Rb8 {[%clk 0:00:21]} 22. Qf3 {[%clk 0:00:21]}  h5 {[%clk 0:00:12]} 23. h3 {[%clk 0:00:20]}  h4 {[%clk 0:00:12]} 24. c4 {[%clk 0:00:13]}  Bh5 {[%clk 0:00:10]} 25. Qd5 {[%clk 0:00:09]}  Qc3 {[%clk 0:00:08]} 26. Rf1 {[%clk 0:00:07]}  Be2 {[%clk 0:00:08]} 27. Rb1 {[%clk 0:00:05]}  Bxc4 {[%clk 0:00:07]} 28. Qd6 {[%clk 0:00:04]}  Rf8 {[%clk 0:00:04]} 29. Bf3 {[%clk 0:00:04]}  Be6 {[%clk 0:00:04]} 30. Qxa6 {[%clk 0:00:04]}  Qc2 {[%clk 0:00:03]} 31. Qb5 {[%clk 0:00:03]}  Rd8 {[%clk 0:00:02]} 32. a5 {[%clk 0:00:03]}  Rd2 {[%clk 0:00:02]} 33. a6 {[%clk 0:00:02]}  Rxf2 {[%clk 0:00:02]} 34. a7 {[%clk 0:00:03]} 1-0


[Site "https://www.chess.com"]

[Event "Titled Tuesday Blitz January 17 Early 2023"]
[White "Mamedov, Edgar"]
[Black "Aradhya, Garg"]
[WhiteFideId "13739980"]
[BlackFideId "25006746"]
[WhiteElo "2193"]
[BlackElo "2284"]
[Result "1-0"]
[Round "01"]
[TimeControl "180+2"]
[Date "2023.01.17"]
[WhiteClock "0:00:10"]
[BlackClock "0:00:10"]

1. Nf3 {[%clk 0:02:57]}  Nf6 {[%clk 0:02:58]} 2. d4 {[%clk 0:02:55]}  d5 {[%clk 0:02:58]} 3. c4 {[%clk 0:02:54]}  c6 {[%clk 0:02:58]} 4. cxd5 {[%clk 0:02:53]}  cxd5 {[%clk 0:02:58]} 5. Nc3 {[%clk 0:02:53]}  Nc6 {[%clk 0:02:59]} 6. Bf4 {[%clk 0:02:53]}  Bf5 {[%clk 0:02:57]} 7. e3 {[%clk 0:02:52]}  e6 {[%clk 0:02:58]} 8. Bd3 {[%clk 0:02:52]}  Bxd3 {[%clk 0:02:57]} 9. Qxd3 {[%clk 0:02:53]}  Bd6 {[%clk 0:02:56]} 10. Bxd6 {[%clk 0:02:53]}  Qxd6 {[%clk 0:02:57]} 11. O-O {[%clk 0:02:52]}  O-O {[%clk 0:02:57]} 12. Rac1 {[%clk 0:02:52]}  Rfc8 {[%clk 0:02:57]} 13. a3 {[%clk 0:02:51]}  Na5 {[%clk 0:02:47]} 14. Ne5 {[%clk 0:02:39]}  Nc4 {[%clk 0:02:33]} 15. Nb5 {[%clk 0:02:13]}  Qb6 {[%clk 0:02:11]} 16. Nxc4 {[%clk 0:02:01]}  Qxb5 {[%clk 0:02:11]} 17. Ne5 {[%clk 0:02:01]}  Qxd3 {[%clk 0:01:55]} 18. Nxd3 {[%clk 0:02:01]}  Ne4 {[%clk 0:01:55]} 19. Rfd1 {[%clk 0:01:51]}  Kf8 {[%clk 0:01:41]} 20. f3 {[%clk 0:01:50]}  Nd6 {[%clk 0:01:40]} 21. Kf2 {[%clk 0:01:48]}  Ke7 {[%clk 0:01:39]} 22. Ke2 {[%clk 0:01:47]}  a5 {[%clk 0:01:32]} 23. a4 {[%clk 0:01:43]}  f6 {[%clk 0:01:19]} 24. b3 {[%clk 0:01:42]}  b6 {[%clk 0:01:19]} 25. Rxc8 {[%clk 0:01:42]}  Rxc8 {[%clk 0:01:18]} 26. Rc1 {[%clk 0:01:42]}  Rxc1 {[%clk 0:01:17]} 27. Nxc1 {[%clk 0:01:42]}  Kd7 {[%clk 0:01:17]} 28. Nd3 {[%clk 0:01:41]}  Nb7 {[%clk 0:01:11]} 29. Kd2 {[%clk 0:01:40]}  Nd6 {[%clk 0:01:07]} 30. Kc3 {[%clk 0:01:36]}  Nf5 {[%clk 0:01:07]} 31. Kd2 {[%clk 0:01:34]}  Nh4 {[%clk 0:01:07]} 32. Ne1 {[%clk 0:01:34]}  Kc6 {[%clk 0:01:07]} 33. g3 {[%clk 0:01:32]}  Nf5 {[%clk 0:01:07]} 34. Nd3 {[%clk 0:01:30]}  g5 {[%clk 0:01:05]} 35. Nf2 {[%clk 0:01:25]}  Kd6 {[%clk 0:00:54]} 36. Kd3 {[%clk 0:01:25]}  Ke7 {[%clk 0:00:51]} 37. e4 {[%clk 0:01:23]}  Nd6 {[%clk 0:00:51]} 38. exd5 {[%clk 0:01:17]}  exd5 {[%clk 0:00:50]} 39. Nd1 {[%clk 0:01:18]}  Ke6 {[%clk 0:00:50]} 40. Nc3 {[%clk 0:01:16]}  h5 {[%clk 0:00:49]} 41. Ke3 {[%clk 0:01:13]}  Nf5+ {[%clk 0:00:48]} 42. Kd3 {[%clk 0:01:13]}  Ne7 {[%clk 0:00:48]} 43. Nb5 {[%clk 0:01:08]}  Kd7 {[%clk 0:00:44]} 44. Nc3 {[%clk 0:01:07]}  Kc6 {[%clk 0:00:44]} 45. Ke3 {[%clk 0:01:06]}  Nf5+ {[%clk 0:00:44]} 46. Kd3 {[%clk 0:01:06]}  h4 {[%clk 0:00:44]} 47. g4 {[%clk 0:01:05]}  Ng7 {[%clk 0:00:44]} 48. Ke3 {[%clk 0:00:59]}  f5 {[%clk 0:00:44]} 49. Ne2 {[%clk 0:00:53]}  fxg4 {[%clk 0:00:32]} 50. fxg4 {[%clk 0:00:52]}  Ne8 {[%clk 0:00:32]} 51. h3 {[%clk 0:00:31]}  Nf6 {[%clk 0:00:31]} 52. Nc3 {[%clk 0:00:31]}  Ne8 {[%clk 0:00:31]} 53. Ne2 {[%clk 0:00:30]}  Nd6 {[%clk 0:00:31]} 54. Nc3 {[%clk 0:00:29]}  b5 {[%clk 0:00:31]} 55. Kd3 {[%clk 0:00:26]}  b4 {[%clk 0:00:27]} 56. Ne2 {[%clk 0:00:24]}  Ne4 {[%clk 0:00:27]} 57. Ke3 {[%clk 0:00:23]}  Kd6 {[%clk 0:00:27]} 58. Ng1 {[%clk 0:00:23]}  Ke6 {[%clk 0:00:22]} 59. Nf3 {[%clk 0:00:23]}  Kf6 {[%clk 0:00:21]} 60. Ne5 {[%clk 0:00:23]}  Nc3 {[%clk 0:00:19]} 61. Nc6 {[%clk 0:00:22]}  Nd1+ {[%clk 0:00:17]} 62. Ke2 {[%clk 0:00:22]}  Nc3+ {[%clk 0:00:17]} 63. Kd3 {[%clk 0:00:21]}  Nd1 {[%clk 0:00:18]} 64. Ke2 {[%clk 0:00:19]}  Nc3+ {[%clk 0:00:18]} 65. Kf3 {[%clk 0:00:19]}  Na2 {[%clk 0:00:13]} 66. Nxa5 {[%clk 0:00:19]}  Nc1 {[%clk 0:00:14]} 67. Ke3 {[%clk 0:00:18]}  Ke6 {[%clk 0:00:14]} 68. Kd2 {[%clk 0:00:18]}  Na2 {[%clk 0:00:14]} 69. Kc2 {[%clk 0:00:16]}  Kd6 {[%clk 0:00:14]} 70. Nb7+ {[%clk 0:00:15]}  Kc6 {[%clk 0:00:14]} 71. Nd8+ {[%clk 0:00:15]}  Kd7 {[%clk 0:00:10]} 72. Nf7 {[%clk 0:00:15]}  Nc3 {[%clk 0:00:09]} 73. Nxg5 {[%clk 0:00:16]}  Ne2 {[%clk 0:00:10]} 74. Nf3 {[%clk 0:00:15]}  Nf4 {[%clk 0:00:10]} 75. Nxh4 {[%clk 0:00:16]}  Nxh3 {[%clk 0:00:10]} 76. Nf3 {[%clk 0:00:16]}  Nf4 {[%clk 0:00:10]} 77. g5 {[%clk 0:00:16]}  Ke6 {[%clk 0:00:10]} 78. Ne5 {[%clk 0:00:16]}  Kf5 {[%clk 0:00:10]} 79. g6 {[%clk 0:00:16]}  Ne6 {[%clk 0:00:10]} 80. a5 {[%clk 0:00:16]}  Nxd4+ {[%clk 0:00:10]} 81. Kd3 {[%clk 0:00:15]}  Ne6 {[%clk 0:00:10]} 82. a6 {[%clk 0:00:10]}  Nc5+ {[%clk 0:00:10]} 83. Kd4 {[%clk 0:00:10]}  Nxb3+ {[%clk 0:00:05]} 84. Kxd5 {[%clk 0:00:10]}  Nd4 {[%clk 0:00:03]} 85. Kxd4 {[%clk 0:00:09]}  b3 {[%clk 0:00:03]} 86. Kc3 {[%clk 0:00:09]}  Kxe5 {[%clk 0:00:04]} 87. Kxb3 {[%clk 0:00:09]}  Kf6 {[%clk 0:00:04]} 88. a7 {[%clk 0:00:09]}  Kxg6 {[%clk 0:00:05]} 89. a8=Q {[%clk 0:00:09]}  Kf5 {[%clk 0:00:06]} 90. Kc4 {[%clk 0:00:10]}  Kg4 {[%clk 0:00:06]} 91. Kd4 {[%clk 0:00:10]}  Kg3 {[%clk 0:00:07]} 92. Qe4 {[%clk 0:00:09]}  Kf2 {[%clk 0:00:08]} 93. Qe3+ {[%clk 0:00:10]}  Kg2 {[%clk 0:00:08]} 94. Ke4 {[%clk 0:00:10]}  Kf1 {[%clk 0:00:09]} 95. Qd2 {[%clk 0:00:10]}  Kg1 {[%clk 0:00:09]} 96. Kf3 {[%clk 0:00:10]}  Kf1 {[%clk 0:00:10]} 97. Qf2# {[%clk 0:00:10]} 1-0


[Site "https://www.chess.com"]

[Event "Titled Tuesday Blitz January 17 Early 2023"]
[White "Rozman, Levy"]
[Black "Garv Gaur"]
[WhiteFideId "2039877"]
[BlackFideId "45030839"]
[WhiteElo "2322"]
[BlackElo "2006"]
[Result "1-0"]
[Round "01"]
[TimeControl "180+2"]
[Date "2023.01.17"]
[WhiteClock "0:00:58"]
[BlackClock "0:00:02"]

1. d4 {[%clk 0:02:59]}  d5 {[%clk 0:02:58]} 2. Bg5 {[%clk 0:02:52]}  Nf6 {[%clk 0:02:58]} 3. Bxf6 {[%clk 0:02:51]}  exf6 {[%clk 0:02:58]} 4. e3 {[%clk 0:02:52]}  Be6 {[%clk 0:02:54]} 5. g3 {[%clk 0:02:52]}  c6 {[%clk 0:02:52]} 6. Bg2 {[%clk 0:02:52]}  Bd6 {[%clk 0:02:53]} 7. Ne2 {[%clk 0:02:52]}  O-O {[%clk 0:02:53]} 8. O-O {[%clk 0:02:52]}  Qc7 {[%clk 0:02:53]} 9. Qd3 {[%clk 0:02:51]}  Re8 {[%clk 0:02:52]} 10. Nd2 {[%clk 0:02:51]}  Nd7 {[%clk 0:02:50]} 11. c4 {[%clk 0:02:51]}  dxc4 {[%clk 0:02:37]} 12. Nxc4 {[%clk 0:02:51]}  Nb6 {[%clk 0:02:27]} 13. b3 {[%clk 0:02:48]}  Rad8 {[%clk 0:02:25]} 14. Rac1 {[%clk 0:02:43]}  Qd7 {[%clk 0:02:16]} 15. Nxd6 {[%clk 0:02:37]}  Qxd6 {[%clk 0:02:17]} 16. Nf4 {[%clk 0:02:36]}  Nd5 {[%clk 0:02:03]} 17. Nxe6 {[%clk 0:02:32]}  Qxe6 {[%clk 0:02:02]} 18. Rc5 {[%clk 0:02:28]}  Nb6 {[%clk 0:01:41]} 19. a4 {[%clk 0:02:25]}  Qe7 {[%clk 0:01:37]} 20. Rfc1 {[%clk 0:02:23]}  Nd7 {[%clk 0:01:28]} 21. R5c2 {[%clk 0:02:18]}  Ne5 {[%clk 0:01:25]} 22. Qe2 {[%clk 0:02:12]}  Ng6 {[%clk 0:01:25]} 23. Qh5 {[%clk 0:02:06]}  Qb4 {[%clk 0:01:15]} 24. Rc3 {[%clk 0:02:05]}  Ne7 {[%clk 0:01:10]} 25. Qc5 {[%clk 0:02:01]}  Qb6 {[%clk 0:01:08]} 26. b4 {[%clk 0:01:53]}  Nd5 {[%clk 0:01:04]} 27. Rb3 {[%clk 0:01:48]}  Qa6 {[%clk 0:00:57]} 28. a5 {[%clk 0:01:34]}  Qe2 {[%clk 0:00:37]} 29. Qxa7 {[%clk 0:01:25]}  Nxe3 {[%clk 0:00:11]} 30. fxe3 {[%clk 0:01:20]}  Rxe3 {[%clk 0:00:11]} 31. Rbb1 {[%clk 0:01:15]}  Ra3 {[%clk 0:00:08]} 32. Qxb7 {[%clk 0:01:11]}  Ra2 {[%clk 0:00:08]} 33. Qxc6 {[%clk 0:01:12]}  Qf2+ {[%clk 0:00:04]} 34. Kh1 {[%clk 0:01:12]}  Rf8 {[%clk 0:00:04]} 35. Qf3 {[%clk 0:01:10]}  Qxd4 {[%clk 0:00:04]} 36. Rd1 {[%clk 0:01:03]}  Qa7 {[%clk 0:00:03]} 37. Ra1 {[%clk 0:01:02]}  Rf2 {[%clk 0:00:03]} 38. Qb7 {[%clk 0:01:01]}  Qe3 {[%clk 0:00:03]} 39. a6 {[%clk 0:01:01]}  h5 {[%clk 0:00:02]} 40. a7 {[%clk 0:01:01]}  h4 {[%clk 0:00:02]} 41. a8=Q {[%clk 0:01:01]}  hxg3 {[%clk 0:00:01]} 42. Qxf8+ {[%clk 0:01:00]}  Kxf8 {[%clk 0:00:02]} 43. Rd8+ {[%clk 0:00:58]} 1-0


[Site "https://www.chess.com"]

[Event "Titled Tuesday Blitz January 17 Early 2023"]
[White "Mahdavi, Reza"]
[Black "Becerra, Juan David"]
[WhiteFideId "12595926"]
[BlackFideId "4404998"]
[WhiteElo "2339"]
[BlackElo "2382"]
[Result "1-0"]
[Round "01"]
[TimeControl "180+2"]
[Date "2023.01.17"]
[WhiteClock "0:00:08"]
[BlackClock "0:00:08"]

1. e4 {[%clk 0:03:00]}  e5 {[%clk 0:02:54]} 2. Nf3 {[%clk 0:03:01]}  Nc6 {[%clk 0:02:50]} 3. Nc3 {[%clk 0:03:01]}  Nf6 {[%clk 0:02:46]} 4. d4 {[%clk 0:03:01]}  exd4 {[%clk 0:02:43]} 5. Nxd4 {[%clk 0:03:02]}  Nxe4 {[%clk 0:02:38]} 6. Nxe4 {[%clk 0:03:02]}  Qe7 {[%clk 0:02:37]} 7. Bd3 {[%clk 0:02:41]}  Nxd4 {[%clk 0:02:26]} 8. O-O {[%clk 0:02:41]}  Ne6 {[%clk 0:02:21]} 9. Re1 {[%clk 0:01:52]}  d5 {[%clk 0:02:11]} 10. Bg5 {[%clk 0:01:38]}  Qd7 {[%clk 0:01:57]} 11. Nc3 {[%clk 0:01:12]}  Bb4 {[%clk 0:01:56]} 12. Qh5 {[%clk 0:00:45]}  Kf8 {[%clk 0:01:35]} 13. Bd2 {[%clk 0:00:42]}  c6 {[%clk 0:01:28]} 14. a3 {[%clk 0:00:35]}  Be7 {[%clk 0:01:26]} 15. f4 {[%clk 0:00:35]}  Bf6 {[%clk 0:01:23]} 16. f5 {[%clk 0:00:34]}  Nc5 {[%clk 0:01:23]} 17. g4 {[%clk 0:00:16]}  Nxd3 {[%clk 0:01:21]} 18. cxd3 {[%clk 0:00:17]}  g6 {[%clk 0:01:18]} 19. Qh6+ {[%clk 0:00:13]}  Bg7 {[%clk 0:01:17]} 20. Qe3 {[%clk 0:00:13]}  gxf5 {[%clk 0:01:16]} 21. Nxd5 {[%clk 0:00:10]}  f6 {[%clk 0:00:54]} 22. Bb4+ {[%clk 0:00:08]}  Kf7 {[%clk 0:00:54]} 23. Qe7+ {[%clk 0:00:08]}  Qxe7 {[%clk 0:00:54]} 24. Rxe7+ {[%clk 0:00:09]}  Kg6 {[%clk 0:00:55]} 25. Nf4+ {[%clk 0:00:10]}  Kg5 {[%clk 0:00:53]} 26. Nh3+ {[%clk 0:00:08]}  Kg6 {[%clk 0:00:49]} 27. Nf4+ {[%clk 0:00:08]}  Kg5 {[%clk 0:00:50]} 28. Bd2 {[%clk 0:00:08]}  Rg8 {[%clk 0:00:43]} 29. Nh3+ {[%clk 0:00:05]}  Kxg4 {[%clk 0:00:43]} 30. Nf4 {[%clk 0:00:04]}  Bh6 {[%clk 0:00:41]} 31. Kh1 {[%clk 0:00:05]}  Bxf4 {[%clk 0:00:37]} 32. Rg1+ {[%clk 0:00:05]}  Kf3 {[%clk 0:00:37]} 33. Rf1+ {[%clk 0:00:05]}  Kg4 {[%clk 0:00:36]} 34. Rxf4+ {[%clk 0:00:05]}  Kh5 {[%clk 0:00:35]} 35. Rf3 {[%clk 0:00:04]}  f4 {[%clk 0:00:33]} 36. Rxf4 {[%clk 0:00:03]}  Bg4 {[%clk 0:00:32]} 37. Rxh7+ {[%clk 0:00:03]}  Kg6 {[%clk 0:00:32]} 38. Rxb7 {[%clk 0:00:04]}  Be6 {[%clk 0:00:30]} 39. Kg1 {[%clk 0:00:04]}  Rab8 {[%clk 0:00:25]} 40. Rxb8 {[%clk 0:00:04]}  Rxb8 {[%clk 0:00:26]} 41. Bc3 {[%clk 0:00:05]}  Bf5 {[%clk 0:00:26]} 42. Kf2 {[%clk 0:00:05]}  Rd8 {[%clk 0:00:26]} 43. h4 {[%clk 0:00:05]}  Rxd3 {[%clk 0:00:25]} 44. Rc4 {[%clk 0:00:04]}  Bd7 {[%clk 0:00:23]} 45. Rf4 {[%clk 0:00:02]}  Rd6 {[%clk 0:00:23]} 46. Kg3 {[%clk 0:00:02]}  Bf5 {[%clk 0:00:22]} 47. Ra4 {[%clk 0:00:03]}  Rd7 {[%clk 0:00:21]} 48. Ra5 {[%clk 0:00:03]}  Be4 {[%clk 0:00:20]} 49. h5+ {[%clk 0:00:03]}  Kh7 {[%clk 0:00:20]} 50. Bxf6 {[%clk 0:00:03]}  Bd5 {[%clk 0:00:19]} 51. Bc3 {[%clk 0:00:04]}  Kh6 {[%clk 0:00:19]} 52. Kh4 {[%clk 0:00:05]}  Re7 {[%clk 0:00:18]} 53. Bd2+ {[%clk 0:00:05]}  Kh7 {[%clk 0:00:19]} 54. Ra4 {[%clk 0:00:05]}  Re2 {[%clk 0:00:19]} 55. Bc3 {[%clk 0:00:05]}  Rh2+ {[%clk 0:00:19]} 56. Kg5 {[%clk 0:00:05]}  Bf7 {[%clk 0:00:18]} 57. Rxa7 {[%clk 0:00:05]}  Kg8 {[%clk 0:00:15]} 58. h6 {[%clk 0:00:05]}  Rg2+ {[%clk 0:00:15]} 59. Kf6 {[%clk 0:00:05]}  Rg6+ {[%clk 0:00:15]} 60. Kf5 {[%clk 0:00:05]}  Rxh6 {[%clk 0:00:06]} 61. Ra8+ {[%clk 0:00:05]}  Be8 {[%clk 0:00:06]} 62. Rxe8+ {[%clk 0:00:05]}  Kf7 {[%clk 0:00:07]} 63. Rh8 {[%clk 0:00:06]}  Rd6 {[%clk 0:00:06]} 64. Rh7+ {[%clk 0:00:07]}  Ke8 {[%clk 0:00:06]} 65. Ke5 {[%clk 0:00:07]}  Rd5+ {[%clk 0:00:07]} 66. Ke6 {[%clk 0:00:07]}  Kd8 {[%clk 0:00:08]} 67. Be5 {[%clk 0:00:06]}  Kc8 {[%clk 0:00:07]} 68. Rc7+ {[%clk 0:00:07]}  Kd8 {[%clk 0:00:08]} 69. Rxc6 {[%clk 0:00:08]} 1-0


[Site "https://www.chess.com"]

[Event "Titled Tuesday Blitz January 17 Early 2023"]
[White "Wagh Suyog"]
[Black "Rengifo Blancas, Renzo Jhonathan"]
[WhiteFideId "25071688"]
[BlackFideId "3807185"]
[WhiteElo "2313"]
[BlackElo "2131"]
[Result "1-0"]
[Round "01"]
[TimeControl "180+2"]
[Date "2023.01.17"]
[WhiteClock "0:00:53"]
[BlackClock "0:00:21"]

1. d4 {[%clk 0:02:56]}  d5 {[%clk 0:02:59]} 2. c4 {[%clk 0:02:56]}  c6 {[%clk 0:02:41]} 3. e3 {[%clk 0:02:49]}  Nf6 {[%clk 0:02:40]} 4. Nf3 {[%clk 0:02:48]}  Bf5 {[%clk 0:02:37]} 5. Nc3 {[%clk 0:02:47]}  e6 {[%clk 0:02:38]} 6. Nh4 {[%clk 0:02:47]}  Be4 {[%clk 0:02:36]} 7. Qb3 {[%clk 0:02:44]}  Qb6 {[%clk 0:02:31]} 8. f3 {[%clk 0:02:44]}  Bg6 {[%clk 0:02:31]} 9. Nxg6 {[%clk 0:02:40]}  hxg6 {[%clk 0:02:27]} 10. Bd2 {[%clk 0:02:40]}  Nbd7 {[%clk 0:02:25]} 11. O-O-O {[%clk 0:02:35]}  Bd6 {[%clk 0:02:24]} 12. h3 {[%clk 0:02:33]}  Qxb3 {[%clk 0:02:23]} 13. axb3 {[%clk 0:02:33]}  Bb4 {[%clk 0:02:22]} 14. Bd3 {[%clk 0:02:31]}  O-O {[%clk 0:02:19]} 15. g4 {[%clk 0:02:30]}  Rfe8 {[%clk 0:02:19]} 16. f4 {[%clk 0:02:29]}  a6 {[%clk 0:02:12]} 17. Kc2 {[%clk 0:02:17]}  b5 {[%clk 0:02:12]} 18. c5 {[%clk 0:01:49]}  a5 {[%clk 0:02:00]} 19. Rdg1 {[%clk 0:01:47]}  a4 {[%clk 0:01:55]} 20. bxa4 {[%clk 0:01:46]}  bxa4 {[%clk 0:01:55]} 21. Ra1 {[%clk 0:01:45]}  a3 {[%clk 0:01:46]} 22. b3 {[%clk 0:01:43]}  Reb8 {[%clk 0:01:45]} 23. Rhb1 {[%clk 0:01:41]}  Ne8 {[%clk 0:00:56]} 24. Ra2 {[%clk 0:01:30]}  Ra5 {[%clk 0:00:52]} 25. Rba1 {[%clk 0:01:16]}  Rba8 {[%clk 0:00:45]} 26. Nb1 {[%clk 0:01:12]}  Bxd2 {[%clk 0:00:43]} 27. Kxd2 {[%clk 0:01:13]}  Nc7 {[%clk 0:00:37]} 28. Rxa3 {[%clk 0:01:13]}  Rxa3 {[%clk 0:00:36]} 29. Rxa3 {[%clk 0:01:14]}  Rxa3 {[%clk 0:00:36]} 30. Nxa3 {[%clk 0:01:14]}  Kf8 {[%clk 0:00:34]} 31. g5 {[%clk 0:01:14]}  f6 {[%clk 0:00:34]} 32. Bxg6 {[%clk 0:01:11]}  Ke7 {[%clk 0:00:33]} 33. Bd3 {[%clk 0:01:10]}  e5 {[%clk 0:00:33]} 34. Bf5 {[%clk 0:01:07]}  Nf8 {[%clk 0:00:29]} 35. Nc2 {[%clk 0:01:03]}  e4 {[%clk 0:00:25]} 36. Nb4 {[%clk 0:01:02]}  g6 {[%clk 0:00:22]} 37. Nxc6+ {[%clk 0:00:59]}  Kf7 {[%clk 0:00:22]} 38. Bg4 {[%clk 0:01:00]}  f5 {[%clk 0:00:21]} 39. Be2 {[%clk 0:00:59]}  Nfe6 {[%clk 0:00:22]} 40. b4 {[%clk 0:00:59]}  Ke8 {[%clk 0:00:20]} 41. Ne5 {[%clk 0:00:58]}  Nf8 {[%clk 0:00:20]} 42. b5 {[%clk 0:00:58]}  Nce6 {[%clk 0:00:20]} 43. Kc3 {[%clk 0:00:57]}  Kd8 {[%clk 0:00:20]} 44. Kb4 {[%clk 0:00:57]}  Kc7 {[%clk 0:00:21]} 45. h4 {[%clk 0:00:57]}  Nd8 {[%clk 0:00:21]} 46. h5 {[%clk 0:00:53]}  gxh5 {[%clk 0:00:21]} 47. Bxh5 {[%clk 0:00:54]}  Nde6 {[%clk 0:00:22]} 48. Bf7 {[%clk 0:00:53]}  Kd8 {[%clk 0:00:20]} 49. Bxe6 {[%clk 0:00:53]}  Nxe6 {[%clk 0:00:21]} 50. g6 {[%clk 0:00:54]}  Ke7 {[%clk 0:00:22]} 51. b6 {[%clk 0:00:54]}  Kd8 {[%clk 0:00:21]} 52. c6 {[%clk 0:00:54]}  Kc8 {[%clk 0:00:22]} 53. b7+ {[%clk 0:00:52]}  Kb8 {[%clk 0:00:22]} 54. Nd7+ {[%clk 0:00:52]}  Kc7 {[%clk 0:00:21]} 55. b8=Q+ {[%clk 0:00:52]}  Kxc6 {[%clk 0:00:21]} 56. Ne5# {[%clk 0:00:53]} 1-0


[Site "https://www.chess.com"]